bitfinex-derivatives/quotes_SOLF0:USTF0_20240815
["timestamp","ask_amount","ask_price","bid_price","bid_amount"]
[1723743593322,3.47663795,145.19,145.17,0.05061298]
[1723743594124,3.4434,145.18,145.17,0.05061298]
[1723743595616,3.47653795,145.19,145.17,0.05061298]
[1723743596226,3.47653795,145.19,145.17,3.49431298]
[1723743596623,0.03323795,145.19,145.17,3.49431298]
[1723743598219,0.03323795,145.19,145.18,3.4434]
[1723743600131,0.03323795,145.19,145.17,3.49421298]
[1723743600430,3.47643795,145.19,145.17,3.49421298]
[1723743600830,0.03323795,145.19,145.18,3.4434]
[1723743601127,0.03323795,145.19,145.17,0.05061298]
[1723743601337,19.84,145.18,145.17,0.05061298]
[1723743601730,19.84,145.18,145.1,5.8301]
[1723743601929,4.61323795,145.19,145.13,3.4444]
[1723743601930,19.84,145.16,145.13,3.4444]
[1723743602227,23.284,145.16,145.1,5.8301]
[1723743602433,19.84,145.16,145.07,4.58]
[1723743602827,3.4443,145.15,145.07,4.58]
[1723743603030,0.05010328,145.13,145.12,3.4448]
[1723743603926,0.05010328,145.13,145.11,0.04882555]
[1723743603927,0.05010328,145.13,145.11,3.49382555]
[1723743605330,0.05010328,145.13,145.12,3.4449]
[1723743607429,24.42,145.22,145.17,3.4436]
[1723743607633,19.84,145.22,145.16,3.41683303]
[1723743607834,3.4428,145.21,145.13,21.1513]
[1723743608033,3.4428,145.21,145.17,3.4436]
[1723743608532,0.03374764,145.2,145.18,0.05165382]
[1723743609034,3.47684764,145.2,145.18,3.49505382]
[1723743609331,3.47684764,145.2,145.18,0.05165382]
[1723743609537,0.03374764,145.2,145.18,0.05165382]
[1723743610727,3.47674764,145.2,145.18,3.49505382]
[1723743611232,3.47674764,145.2,145.18,0.05165382]
[1723743612040,3.4432,145.19,145.18,0.05165382]
[1723743612640,3.4443,145.15,145.1,5.9387]
[1723743612836,19.84,145.16,145.1,5.9387]
[1723743613534,23.2837,145.18,145.14,3.4443]
[1723743614132,3.49373049,145.17,145.14,3.4443]
[1723743614541,0.05003049,145.17,145.13,3.4445]
[1723743614743,0.05003049,145.17,145.12,0.04838141]
[1723743614744,3.444,145.16,145.12,0.04838141]
[1723743615042,3.444,145.16,145.12,3.49308141]
[1723743615344,3.4444,145.15,145.12,0.04838141]
[1723743616635,19.89003049,145.17,145.12,0.04838141]
[1723743616843,3.444,145.16,145.13,3.4446]
[1723743617037,3.444,145.16,145.12,0.04838141]
[1723743617348,19.89003049,145.17,145.12,0.04838141]
[1723743617843,3.444,145.16,145.12,0.04838141]
[1723743618538,3.444,145.16,145.13,3.4445]
[1723743619139,3.4443,145.15,145.12,3.49318141]
[1723743619742,3.4443,145.15,145.12,0.04838141]
[1723743620246,0.05003049,145.17,145.12,0.04838141]
[1723743621340,19.84,145.16,145.12,0.04838141]
[1723743621747,23.284,145.16,145.12,0.04838141]
[1723743621946,19.84,145.16,145.12,0.04838141]
[1723743623448,23.284,145.16,145.12,0.04838141]
[1723743624044,3.4442,145.15,145.12,0.04838141]
[1723743624547,23.284,145.16,145.12,8.82418539]
[1723743625447,23.284,145.16,145.12,0.04838141]
[1723743626244,0.05003049,145.17,145.12,0.04838141]
[1723743626446,0.05003049,145.17,145.13,8.77563683]
[1723743626648,0.05003049,145.17,145.12,0.04838141]
[1723743626941,0.05003049,145.17,145.13,12.21995519]
[1723743627151,0.05003049,145.17,145.13,3.41418645]
[1723743627449,0.05003049,145.17,145.15,3.4442]
[1723743627641,0.05003049,145.17,145.14,3.41831985]
[1723743628248,0.05003049,145.17,145.15,12.21878717]
[1723743628443,0.05003049,145.17,145.15,3.444]
[1723743628944,0.05003049,145.17,145.16,3.4439]
[1723743629548,0.05003049,145.17,145.16,12.21853519]
[1723743630850,0.05003049,145.17,145.16,8.77463519]
[1723743632946,0.05003049,145.17,145.16,12.21853519]
[1723743634949,17.194,145.38,145.18,3.4433]
[1723743635144,19.84,145.25,145.17,19.84]
[1723743635345,64.58150946,145.26,145.19,19.84]
[1723743635552,3.4418,145.25,145.2,12.21602338]
[1723743635845,3.4418,145.25,145.19,19.84]
[1723743636050,3.4418,145.25,145.2,8.77283136]
[1723743636257,0.03537098,145.23,145.21,0.0518603]
[1723743636947,0.03537098,145.23,145.21,3.4945603]
[1723743637542,0.03537098,145.23,145.21,0.0518603]
[1723743637850,19.87537098,145.23,145.21,0.0518603]
[1723743638047,23.31777098,145.23,145.21,0.0518603]
[1723743638447,19.87537098,145.23,145.21,0.0518603]
[1723743638648,3.4425,145.22,145.21,0.0518603]
[1723743641648,19.87537098,145.23,145.15,8.77352759]
[1723743641957,19.84,145.21,145.16,8.77352759]
[1723743642155,19.84,145.19,145.11,19.84]
[1723743642358,19.84,145.19,145.12,22.05525713]
[1723743642557,19.84,145.19,145.13,12.21876856]
[1723743642756,3.4438,145.17,145.14,8.82651707]
[1723743642956,3.4934623,145.17,145.15,8.77426856]
[1723743643262,0.0496623,145.17,145.14,0.05224851]
[1723743643760,0.0496623,145.17,145.14,3.49654851]
[1723743643962,0.0496623,145.17,145.14,0.05224851]
[1723743644660,0.0496623,145.17,145.15,8.77460924]
[1723743644857,0.0496623,145.17,145.14,0.05224851]
[1723743645060,0.0496623,145.17,145.15,8.77441622]
[1723743645255,0.0496623,145.17,145.14,0.05224851]
[1723743645457,0.0496623,145.17,145.15,12.21833302]
[1723743645658,0.0496623,145.17,145.14,0.05224851]
[1723743645957,0.0496623,145.17,145.15,8.77432391]
[1723743646164,0.0496623,145.17,145.14,0.05224851]
[1723743646369,0.0496623,145.17,145.15,8.7743922]
[1723743646561,0.0496623,145.17,145.14,0.05224851]
[1723743646764,0.0496623,145.17,145.15,12.21859845]
[1723743646957,0.0496623,145.17,145.15,3.4442]
[1723743647161,0.0496623,145.17,145.16,3.4439]
[1723743647468,0.0496623,145.17,145.15,8.77440056]
[1723743647762,0.0496623,145.17,145.15,3.4439]
[1723743647962,0.0496623,145.17,145.14,0.05224851]
[1723743648567,3.4934623,145.17,145.14,0.05224851]
[1723743649159,0.0496623,145.17,145.14,0.05224851]
[1723743649366,3.444,145.16,145.14,0.05224851]
[1723743650168,3.4442,145.15,145.14,0.05224851]
[1723743650369,3.4442,145.15,145.14,8.82751128]
[1723743650769,3.444,145.16,145.14,8.82751128]
[1723743650965,3.444,145.16,145.14,0.05224851]
[1723743652162,0.0496623,145.17,145.14,3.49664851]
[1723743652563,0.0496623,145.17,145.14,0.05224851]
[1723743653367,3.4441,145.16,145.14,0.05224851]
[1723743654372,19.8896623,145.17,145.14,0.05224851]
[1723743655068,3.4442,145.15,145.14,0.05224851]
[1723743660079,0.0496623,145.17,145.14,0.05224851]
[1723743660682,3.4442,145.15,145.14,0.05224851]
[1723743661779,19.84,145.16,145.09,3.4455]
[1723743661976,19.84,145.14,145.1,8.77609184]
[1723743662170,4.58,145.15,145.07,13.28732298]
[1723743662171,3.4453,145.11,145.07,13.28732298]
[1723743662373,3.4453,145.11,145.08,12.22269772]
[1723743662577,3.4453,145.11,145.09,8.77699772]
[1723743662778,3.4453,145.11,145.08,3.4457]
[1723743663077,3.4453,145.1,145.09,8.77702912]
[1723743663579,0.0441194,145.11,145.08,0.04938004]
[1723743663783,3.4456,145.09,145.08,0.04938004]
[1723743663982,3.4456,145.09,145.08,8.8267015]
[1723743666076,3.4455,145.1,145.08,8.8267015]
[1723743666280,3.4455,145.1,145.08,0.04938004]
[1723743666483,3.4455,145.1,145.08,8.82670651]
[1723743666687,0.0441194,145.11,145.08,8.82670651]
[1723743666873,0.0441194,145.11,145.09,8.77706131]
[1723743667074,0.0441194,145.11,145.1,12.22157809]
[1723743668185,0.0441194,145.11,145.1,8.77627809]
[1723743668879,0.0441194,145.11,145.1,12.22157809]
[1723743672084,3.444,145.16,145.13,3.4446]
[1723743673278,3.4442,145.15,145.13,0.04714419]
[1723743673479,0.04875146,145.16,145.13,0.04714419]
[1723743673684,3.49285146,145.16,145.13,0.04714419]
[1723743674284,0.04875146,145.16,145.13,3.49174419]
[1723743674682,0.04875146,145.16,145.13,0.04714419]
[1723743674982,0.04875146,145.16,145.14,8.7755297]
[1723743675190,0.04875146,145.16,145.15,8.7755297]
[1723743675491,0.04875146,145.16,145.15,3.4442]
[1723743676286,0.04875146,145.16,145.15,12.21861205]
[1723743676490,0.04875146,145.16,145.15,3.4442]
[1723743677278,0.04875146,145.16,145.15,12.21860254]
[1723743677479,0.04875146,145.16,145.15,3.4442]
[1723743677681,19.84,145.21,145.15,3.4442]
[1723743677682,3.4432,145.2,145.16,3.4438]
[1723743677887,4.56,145.23,145.15,19.84]
[1723743678082,22.4316,145.24,145.16,8.77329097]
[1723743678287,22.4316,145.24,145.17,8.77329097]
[1723743678486,69.14150946,145.26,145.18,8.77329097]
[1723743678487,19.84,145.25,145.18,8.77329097]
[1723743678691,19.84,145.25,145.2,0.05012788]
[1723743678894,0.04660893,145.23,145.2,0.05012788]
[1723743679087,3.48900893,145.23,145.2,3.49312788]
[1723743679494,0.04660893,145.23,145.2,3.49312788]
[1723743679701,3.4425,145.22,145.2,0.05012788]
[1723743679893,0.04660893,145.23,145.2,0.05012788]
[1723743680291,0.04660893,145.23,145.21,3.4426]
[1723743681692,3.48890893,145.23,145.21,3.4426]
[1723743681899,0.04660893,145.23,145.2,3.49292788]
[1723743682196,3.48900893,145.23,145.2,3.49292788]
[1723743682987,0.04660893,145.23,145.21,3.4427]
[1723743683697,0.04660893,145.23,145.2,3.49302788]
[1723743684397,0.04660893,145.23,145.2,0.05012788]
[1723743685001,3.4425,145.22,145.2,0.05012788]
[1723743685792,3.4427,145.21,145.2,0.05012788]
[1723743686389,3.4425,145.22,145.2,0.05012788]
[1723743687609,3.4427,145.21,145.2,0.05012788]
[1723743691698,23.2827,145.21,145.2,0.05012788]
[1723743691895,24.4,145.21,145.13,8.77260204]
[1723743692102,24.4,145.21,145.14,8.77260204]
[1723743692309,3.4435,145.18,145.13,8.77260204]
[1723743693006,3.4435,145.18,145.14,0.0515004]
[1723743693205,0.0498669,145.17,145.14,0.0515004]
[1723743693408,0.0498669,145.17,145.15,3.4442]
[1723743693907,0.0498669,145.17,145.16,3.4439]
[1723743694703,0.0498669,145.17,145.15,3.444]
[1723743695306,3.4935669,145.17,145.15,3.444]
[1723743695705,0.0498669,145.17,145.14,3.4958004]
[1723743695902,3.444,145.16,145.14,3.4958004]
[1723743696206,0.0498669,145.17,145.14,3.4958004]
[1723743696806,3.4936669,145.17,145.14,3.4958004]
[1723743697007,7.9898669,145.17,145.14,0.0515004]
[1723743698410,3.444,145.16,145.14,0.0515004]
[1723743698804,0.0498669,145.17,145.15,3.4441]
[1723743699007,3.4935669,145.17,145.14,0.0515004]
[1723743699405,0.0498669,145.17,145.14,0.0515004]
[1723743700408,0.0498669,145.17,145.15,3.444]
[1723743702628,3.4935669,145.17,145.14,3.4958004]
[1723743703611,3.4439,145.16,145.14,0.0515004]
[1723743703809,11.3839,145.16,145.14,0.0515004]
[1723743704408,3.4439,145.16,145.14,0.0515004]
[1723743705314,3.4442,145.15,145.14,0.0515004]
[1723743706413,3.444,145.16,145.14,0.0515004]
[1723743711914,7.94,145.15,145.14,0.0515004]
[1723743712115,11.3842,145.15,145.14,0.0515004]
[1723743712323,14.80641527,145.15,145.14,0.0515004]
[1723743712524,11.3842,145.15,145.14,0.0515004]
[1723743712710,7.94,145.15,145.1,8.77510686]
[1723743712916,7.94,145.13,145.09,8.77510686]
[1723743713219,3.4453,145.11,145.08,12.22090686]
[1723743713415,3.4453,145.11,145.09,8.77510686]
[1723743713620,3.4453,145.1,145.07,12.22100686]
[1723743713823,3.4453,145.1,145.09,0.05212702]
[1723743714217,3.49145191,145.11,145.09,0.05212702]
[1723743714528,0.04625191,145.11,145.09,0.05212702]
[1723743714825,3.49135191,145.11,145.09,0.05212702]
[1723743715722,3.4454,145.1,145.09,0.05212702]
[1723743718327,3.49135191,145.11,145.09,0.05212702]
[1723743720423,3.4454,145.1,145.09,0.05212702]
[1723743733334,0.04625191,145.11,145.09,0.05212702]
[1723743733539,0.04625191,145.11,145.09,3.49762702]
[1723743734033,0.04625191,145.11,145.1,3.4454]
[1723743737833,3.4442,145.15,145.12,3.4447]
[1723743738045,36.40158592,145.2,145.09,10.12439906]
[1723743738046,1.2454,145.2,145.13,7.94]
[1723743738339,12.5,145.19,145.13,7.94]
[1723743739337,0.04472807,145.17,145.15,0.05314786]
[1723743740839,3.48862807,145.17,145.15,0.05314786]
[1723743741340,11.3839,145.16,145.15,0.05314786]
[1723743742638,0.04472807,145.17,145.15,0.05314786]
[1723743743941,3.4439,145.16,145.15,0.05314786]
[1723743745136,0.04472807,145.17,145.15,0.05314786]
[1723743745745,0.04472807,145.17,145.15,3.49714786]
[1723743748639,0.04472807,145.17,145.16,3.4439]
[1723743748841,0.04472807,145.17,145.15,0.05314786]
[1723743749341,3.48852807,145.17,145.15,0.05314786]
[1723743750041,0.04472807,145.17,145.15,0.05314786]
[1723743750750,0.04472807,145.17,145.16,3.4439]
[1723743755547,0.04472807,145.17,145.16,12.21789682]
[1723743755746,0.04472807,145.17,145.16,12.21708632]
[1723743757239,0.04472807,145.17,145.16,3.4439]
[1723743757549,0.04472807,145.17,145.16,12.21700789]
[1723743761046,0.04472807,145.17,145.16,3.4439]
[1723743761241,0.04472807,145.17,145.16,12.21701236]
[1723743764956,0.04472807,145.17,145.16,12.21685702]
[1723743767446,0.04472807,145.17,145.16,3.4439]
[1723743769759,0.04472807,145.17,145.15,0.05314786]
[1723743769953,7.94,145.16,145.15,0.05314786]
[1723743770658,11.3839,145.16,145.15,0.05314786]
[1723743774056,11.3839,145.16,145.11,8.77470221]
[1723743774057,3.4449,145.12,145.11,8.77470221]
[1723743774258,3.9572,145.19,145.09,8.77470221]
[1723743774259,7.94,145.13,145.09,8.77470221]
[1723743774562,7.94,145.13,145.08,8.77470221]
[1723743774754,3.4449,145.12,145.08,12.22040221]
[1723743775154,7.94,145.13,145.08,3.4457]
[1723743775364,0.04437634,145.11,145.09,0.05082934]
[1723743776254,0.04437634,145.11,145.09,3.49642934]
[1723743780156,0.04437634,145.11,145.1,3.4454]
[1723743780557,0.04437634,145.11,145.09,0.05082934]
[1723743781760,7.94,145.18,145.1,7.94]
[1723743781956,7.94,145.18,145.12,7.94]
[1723743782267,7.94,145.18,145.12,20.22733203]
[1723743782457,7.94,145.18,145.12,11.45160024]
[1723743782767,7.94,145.18,145.14,3.4443]
[1723743783158,0.04568877,145.16,145.14,3.49085542]
[1723743783765,0.04568877,145.16,145.15,3.4442]
[1723743784458,0.04568877,145.16,145.14,3.49085542]
[1723743785767,0.04568877,145.16,145.14,0.04655542]
[1723743786862,3.48978877,145.16,145.14,0.04655542]
[1723743787967,3.4442,145.15,145.14,0.04655542]
[1723743788862,11.3842,145.15,145.14,0.04655542]
[1723743789858,11.42968877,145.16,145.14,0.04655542]
[1723743790260,7.98568877,145.16,145.14,0.04655542]
[1723743791973,0.04568877,145.16,145.14,0.04655542]
[1723743793071,0.04568877,145.16,145.14,8.82178496]
[1723743793271,0.04568877,145.16,145.14,3.49085542]
[1723743793668,0.04568877,145.16,145.15,3.4442]
[1723743795580,0.04568877,145.16,145.14,12.26608496]
[1723743795779,0.04568877,145.16,145.14,3.49085542]
[1723743796281,3.48968877,145.16,145.14,0.04655542]
[1723743796573,3.48968877,145.16,145.14,8.82145721]
[1723743796774,3.48968877,145.16,145.14,0.04655542]
[1723743798075,0.04568877,145.16,145.14,0.04655542]
[1723743800180,7.98568877,145.16,145.14,0.04655542]
[1723743800778,3.4442,145.15,145.14,0.04655542]
[1723743801482,3.48978877,145.16,145.14,0.04655542]
[1723743803786,11.42978877,145.16,145.14,0.04655542]
[1723743804190,7.98568877,145.16,145.14,0.04655542]
[1723743805089,3.4442,145.15,145.14,0.04655542]
[1723743805289,3.4442,145.15,145.14,8.82181653]
[1723743806082,3.48968877,145.16,145.14,8.82181653]
[1723743806289,0.04568877,145.16,145.14,0.04655542]
[1723743807486,0.04568877,145.16,145.14,3.49095542]
[1723743809195,0.04568877,145.16,145.14,0.04655542]
[1723743809784,3.48978877,145.16,145.14,0.04655542]
[1723743809990,11.42978877,145.16,145.14,0.04655542]
[1723743811593,11.3842,145.15,145.14,0.04655542]
[1723743815100,3.4442,145.15,145.14,0.04655542]
[1723743815694,11.3842,145.15,145.14,0.04655542]
[1723743823611,3.4449,145.12,145.11,8.77620911]
[1723743823811,7.94,145.12,145.1,8.77620911]
[1723743824012,7.94,145.12,145.08,16.73336889]
[1723743824211,3.4453,145.11,145.09,8.77640197]
[1723743824513,3.4453,145.11,145.1,8.77640197]
[1723743824805,3.49613447,145.11,145.1,8.77640197]
[1723743826007,3.4454,145.1,145.09,0.04367739]
[1723743826207,3.4454,145.1,145.09,8.82010304]
[1723743827510,3.49603447,145.11,145.09,8.82010304]
[1723743827707,3.49603447,145.11,145.1,8.77642565]
[1723743830518,3.49603447,145.11,145.09,3.48917739]
[1723743830712,3.49603447,145.11,145.1,8.77635867]
[1723743832408,3.4454,145.1,145.09,0.04367739]
[1723743832618,11.3854,145.1,145.09,8.82108108]
[1723743833518,11.3854,145.1,145.09,0.04367739]
[1723743834414,3.4454,145.1,145.09,8.82116686]
[1723743834615,3.4454,145.1,145.09,8.8211577]
[1723743835119,3.4454,145.1,145.09,0.04367739]
[1723743838815,3.4454,145.1,145.09,22.10893382]
[1723743840019,0.05083447,145.11,145.09,30.04893382]
[1723743840223,0.05083447,145.11,145.1,22.06525643]
[1723743841223,0.05083447,145.11,145.1,25.51065643]
[1723743841615,0.05083447,145.11,145.1,25.50575087]
[1723743842221,0.05083447,145.11,145.1,22.06035087]
[1723743843121,1.3263,145.19,145.1,30.00035087]
[1723743843122,7.94,145.17,145.1,30.00035087]
[1723743843320,7.94,145.17,145.11,22.06035087]
[1723743843513,7.94,145.15,145.12,8.77491338]
[1723743843714,7.94,145.15,145.13,8.77491338]
[1723743843913,3.4445,145.14,145.12,13.28654209]
[1723743844218,3.4445,145.14,145.13,8.7755992]
[1723743844617,3.4445,145.14,145.11,3.4451]
[1723743844816,3.4446,145.13,145.12,22.10730951]
[1723743845317,3.4446,145.13,145.12,22.1073095]
[1723743845523,3.4446,145.13,145.12,8.82077473]
[1723743845718,3.4446,145.13,145.12,22.1073095]
[1723743845920,3.4446,145.13,145.12,8.82077473]
[1723743846121,3.4446,145.13,145.12,22.1073095]
[1723743846323,3.4446,145.13,145.12,8.82077473]
[1723743846520,3.4446,145.13,145.12,22.1073095]
[1723743846719,3.4446,145.13,145.12,8.82077473]
[1723743846918,3.4446,145.13,145.12,22.1073095]
[1723743847119,3.4446,145.13,145.12,8.82077473]
[1723743847626,3.4446,145.13,145.12,22.1073095]
[1723743850528,3.4446,145.13,145.12,8.82077473]
[1723743852029,3.4454,145.1,145.09,13.28703044]
[1723743852225,3.4454,145.1,145.09,8.77669432]
[1723743852627,3.4458,145.09,145.07,13.28927233]
[1723743852826,11.3858,145.09,145.08,22.06658661]
[1723743853022,11.3858,145.09,145.08,8.77731428]
[1723743855025,3.4458,145.08,145.07,0.05051703]
[1723743855220,11.3858,145.08,145.07,0.05051703]
[1723743856829,15.9258,145.08,145.07,0.05051703]
[1723743857228,15.9258,145.08,145.02,3.4472]
[1723743857229,3.4467,145.05,145.02,3.4472]
[1723743857526,3.4467,145.05,145.01,12.21464485]
[1723743857527,7.94,145.05,145.01,12.21464485]
[1723743857733,7.94,145.05,145.01,3.4474]
[1723743857932,3.4469,145.04,145.01,12.21475439]
[1723743858127,3.4469,145.04,145.02,8.76713864]
[1723743858330,3.4469,145.04,145.01,12.21453864]
[1723743858628,3.49727294,145.04,145.02,0.04959513]
[1723743858835,3.447,145.03,145.02,0.04959513]
[1723743860938,7.987,145.03,145.02,0.04959513]
[1723743861240,15.927,145.03,145.02,0.04959513]
[1723743864731,7.987,145.03,145.02,0.04959513]
[1723743866038,0.05037294,145.04,145.02,7.98959513]
[1723743868943,3.49717294,145.04,145.02,0.04959513]
[1723743870747,3.447,145.03,145.02,0.04959513]
[1723743871146,0.05037294,145.04,145.02,0.04959513]
[1723743872850,3.49717294,145.04,145.02,0.04959513]
[1723743876449,0.05037294,145.04,145.02,3.49679513]
[1723743876950,0.05037294,145.04,145.02,0.04959513]
[1723743877147,3.49737294,145.04,145.02,0.04959513]
[1723743877744,0.05037294,145.04,145.02,0.04959513]
[1723743878845,3.49727294,145.04,145.02,0.04959513]
[1723743880353,3.447,145.03,145.02,0.04959513]
[1723743881148,0.05037294,145.04,145.02,0.04959513]
[1723743882653,3.447,145.03,145.02,0.04959513]
[1723743885355,11.387,145.03,145.02,0.04959513]
[1723743886659,3.447,145.03,145.02,0.04959513]
[1723743887354,11.43727294,145.04,145.02,0.04959513]
[1723743887546,3.49727294,145.04,145.02,0.04959513]
[1723743889660,3.447,145.03,145.02,0.04959513]
[1723743899563,0.05037294,145.04,145.03,3.447]
[1723743899865,4.54,145.11,145.03,7.94]
[1723743900061,3.4458,145.09,145.05,11.3864]
[1723743900370,3.4458,145.09,145.05,7.94]
[1723743900773,3.4454,145.1,145.07,7.94]
[1723743901064,7.94,145.12,145.07,7.94]
[1723743901277,7.94,145.11,145.05,7.94]
[1723743901473,0.05255485,145.1,145.07,0.04517171]
[1723743901662,3.49805485,145.1,145.07,0.04517171]
[1723743902171,3.49805485,145.1,145.07,3.49117171]
[1723743902670,3.49805485,145.1,145.07,0.04517171]
[1723743903373,3.4456,145.09,145.07,0.04517171]
[1723743904770,7.99255485,145.1,145.07,0.04517171]
[1723743905474,3.4458,145.08,145.07,0.04517171]
[1723743908578,11.3858,145.08,145.07,0.04517171]
[1723743910875,44.24,145.08,144.98,3.4481]
[1723743911177,7.94,145.01,144.95,8.76701548]
[1723743911369,7.94,145.02,144.96,7.94]
[1723743911565,7.94,145.02,144.96,11.43740448]
[1723743911971,11.3873,145.02,144.96,11.43740448]
[1723743912176,0.046463,145.0,144.98,0.04517514]
[1723743912973,0.046463,145.0,144.99,3.4479]
[1723743915074,0.046463,145.0,144.98,3.49327514]
[1723743915380,0.046463,145.0,144.98,0.04517514]
[1723743916283,7.986463,145.0,144.98,0.04517514]
[1723743916779,0.046463,145.0,144.98,0.04517514]
[1723743918080,0.046463,145.0,144.99,7.94]
[1723743918570,0.046463,145.0,144.99,11.388]
[1723743919379,0.046463,145.0,144.99,20.15709511]
[1723743921069,3.4459,145.08,144.99,16.70909511]
[1723743921273,3.4459,145.08,145.03,7.94]
[1723743921473,3.4459,145.08,145.04,8.76627357]
[1723743921671,3.4459,145.08,145.03,7.94]
[1723743921876,3.4459,145.08,145.04,16.70605986]
[1723743922076,3.4459,145.08,145.04,7.94]
[1723743922377,3.4459,145.08,144.99,1.2415]
[1723743922378,7.98894067,145.07,145.05,8.80982759]
[1723743922578,7.98894067,145.07,145.05,0.04417013]
[1723743922983,3.4466,145.05,145.02,8.76674643]
[1723743923181,11.3866,145.05,145.01,3.4473]
[1723743923381,11.3866,145.05,145.02,8.7671559]
[1723743923580,11.3866,145.05,145.01,3.4473]
[1723743923778,11.3866,145.05,145.02,8.81414687]
[1723743924081,7.98894067,145.07,145.02,0.04682]
[1723743924678,3.49514067,145.07,145.02,0.04682]
[1723743924875,0.04894067,145.07,145.03,7.94]
[1723743925775,0.04894067,145.07,145.05,3.4464]
[1723743927275,0.04894067,145.07,145.06,3.4463]
[1723743927878,3.445,145.12,145.08,3.4457]
[1723743928284,3.4453,145.11,145.04,19.84]
[1723743928991,3.445,145.12,145.04,19.84]
[1723743929177,0.04393516,145.09,145.06,0.05127447]
[1723743929582,0.04393516,145.09,145.08,3.4458]
[1723743929781,0.04393516,145.09,145.06,0.05127447]
[1723743930185,0.04393516,145.09,145.06,3.49737447]
[1723743932089,0.04393516,145.09,145.07,3.4461]
[1723743932279,0.04393516,145.09,145.06,0.05127447]
[1723743932481,0.04393516,145.09,145.08,3.4458]
[1723743933081,24.38,145.16,145.09,3.4456]
[1723743933483,3.4448,145.13,145.09,3.4456]
[1723743933684,27.82245379,145.16,145.09,3.4456]
[1723743934078,3.4449,145.12,145.08,3.493448]
[1723743934290,3.4449,145.12,145.08,3.4457]
[1723743934490,19.84,145.13,145.07,1.3089]
[1723743934793,19.84,145.11,145.06,1.3122]
[1723743935091,19.84,145.11,145.09,0.04552342]
[1723743935279,3.4455,145.1,145.09,0.04552342]
[1723743935592,23.2855,145.1,145.09,0.04552342]
[1723743936082,3.4463,145.06,145.01,2.6277]
[1723743936488,19.84,145.08,145.01,2.6277]
[1723743936882,3.4462,145.07,145.03,3.4469]
[1723743937284,3.4457,145.09,145.05,3.4465]
[1723743937479,0.04871089,145.06,145.05,3.4465]
[1723743938486,0.04871089,145.06,145.04,3.49562301]
[1723743939892,0.04871089,145.06,145.04,0.04892301]
[1723743940289,3.4465,145.05,145.04,0.04892301]
[1723743941990,3.4474,145.02,144.97,1.2322]
[1723743942194,3.4474,145.02,144.98,3.4481]
[1723743942491,19.84,145.02,144.96,4.54]
[1723743942792,3.4476,145.01,144.95,3.46235716]
[1723743943188,3.4476,145.01,144.97,3.4483]
[1723743943395,0.05044088,144.99,144.97,3.49650859]
[1723743944685,0.05044088,144.99,144.98,3.4482]
[1723743950494,0.05044088,144.99,144.97,0.04820859]
[1723743951589,19.84,144.98,144.88,18.87874092]
[1723743951902,19.84,144.94,144.86,3.3656463]
[1723743952096,3.45,144.91,144.86,3.3656463]
[1723743952598,3.45,144.91,144.87,3.4508]
[1723743952798,19.84,144.91,144.84,2.6512]
[1723743952998,0.05259942,144.9,144.87,0.05182626]
[1723743953687,3.4506,144.88,144.87,0.05182626]
[1723743954196,3.4513,144.85,144.8,3.4523]
[1723743954388,3.4513,144.85,144.79,22.5111]
[1723743954589,3.4513,144.85,144.79,2.6711]
[1723743954802,3.4513,144.85,144.8,3.4523]
[1723743955101,3.4513,144.85,144.79,6.07496078]
[1723743955102,7.9713,144.85,144.79,6.07496078]
[1723743955399,7.9713,144.85,144.81,3.4521]
[1723743955600,0.0531578,144.84,144.81,3.49586979]
[1723743955797,0.0531578,144.84,144.81,0.04376979]
[1723743956402,0.0531578,144.84,144.81,3.49586979]
[1723743956896,0.0531578,144.84,144.81,0.04376979]
[1723743957098,3.5046578,144.84,144.81,0.04376979]
[1723743958201,3.4518,144.83,144.81,0.04376979]
[1723743960301,3.5047578,144.84,144.81,0.04376979]
[1723743960909,3.4518,144.83,144.81,0.04376979]
[1723743961101,0.0531578,144.84,144.81,0.04376979]
[1723743961302,1.3054578,144.84,144.81,0.04376979]
[1723743962204,3.452,144.82,144.81,0.04376979]
[1723743963700,28.302,144.82,144.81,0.04376979]
[1723743964411,3.4525,144.8,144.73,4.83724569]
[1723743964607,29.39,144.8,144.74,3.4538]
[1723743964914,32.8426,144.8,144.72,3.53150818]
[1723743965108,4.54,144.79,144.69,24.85]